lending/lending_fUSD_20260306
["ID","MTS","AMOUNT","RATE_DAILY","PERIOD"]
[407859612,1772837128078,-840.0,0.0005,120]
[407859613,1772837128133,-22445.12904018,0.0005,120]
[407859614,1772837128188,-170.975285,0.0005,120]
[407859615,1772837128245,-150.0,0.0005002,30]
[407859616,1772837128303,-150.0,0.00050059,30]
[407859617,1772837128359,-150.0,0.00050099,30]
[407859618,1772837128416,-150.0,0.00050138,30]
[407859619,1772837128473,-150.0,0.00050138,30]
[407859620,1772837128531,-150.0,0.00050177,30]
[407859621,1772837128588,-150.0,0.00050216,30]
[407859622,1772837128642,-150.0,0.00050256,30]
[407859623,1772837128696,-150.0,0.00050295,30]
[407859624,1772837128749,-150.0,0.00050334,30]
[407859625,1772837128804,-150.0,0.00050373,30]
[407859626,1772837128858,-150.0,0.00050413,30]
[407859627,1772837128913,-150.0,0.00050413,30]
[407859628,1772837128971,-150.0,0.00050452,30]
[407859629,1772837129026,-150.0,0.00050491,30]
[407859630,1772837129086,-698449.6070227,0.000505,90]
[407859631,1772837129146,-11955.33581655,0.000505,120]
[407859632,1772837129202,-5000.0,0.000505,120]
[407859633,1772837129258,-5000.0,0.000505,120]
[407859634,1772837129317,-5000.0,0.000505,120]
[407859635,1772837129375,-5000.0,0.000505,120]
[407859636,1772837129434,-5000.0,0.000505,120]
[407859637,1772837129686,-5000.0,0.000505,120]
[407859638,1772837129745,-5000.0,0.000505,120]
[407859639,1772837129801,-5000.0,0.000505,120]
[407859640,1772837129858,-5000.0,0.000505,120]
[407859641,1772837129918,-5000.0,0.000505,120]
[407859642,1772837129974,-5000.0,0.000505,120]
[407859643,1772837130030,-1139.94663553,0.000505,30]
[407859644,1772837130086,-298.0,0.000505,120]
[407859645,1772837130142,-150.0,0.00050507,30]
[407859646,1772837130194,-150.0,0.00050524,30]
[407859647,1772837130249,-150.0,0.0005053,30]
[407859648,1772837130301,-5192.88052877,0.00050533,120]
[407859649,1772837130353,-150.0,0.00050549,30]
[407859650,1772837130407,-150.0,0.00050549,30]
[407859651,1772837130461,-259.39398879,0.0005055,30]
[407859652,1772837130517,-196.401106,0.0005055,30]
[407859653,1772837130574,-150.0,0.0005057,30]
[407859654,1772837130631,-150.0,0.00050578,30]
[407859655,1772837130688,-150.0,0.00050598,30]
[407859656,1772837130747,-150.0,0.00050598,30]
[407859657,1772837130803,-259.39398879,0.00050602,30]
[407859658,1772837130861,-196.401106,0.00050602,30]
[407859659,1772837130921,-150.0,0.00050609,30]
[407859660,1772837130978,-150.0,0.00050633,30]
[407859661,1772837131038,-150.0,0.00050643,30]
[407859662,1772837131094,-150.0,0.00050648,30]
[407859663,1772837131150,-259.39398879,0.00050653,30]
[407859664,1772837131206,-196.401106,0.00050653,30]
[407859665,1772837131265,-1211.33,0.00050664,120]
[407859666,1772837131320,-150.0,0.00050687,30]
[407859667,1772837131374,-150.0,0.00050687,30]
[407859668,1772837131426,-150.0,0.00050687,30]
[407859669,1772837131479,-150.0,0.00050687,30]
[407859670,1772837131533,-150.0,0.00050688,30]
[407859671,1772837131586,-150.0,0.00050689,30]
[407859672,1772837131639,-1022.9486,0.000507,120]
[407859673,1772837131688,-1395.017,0.000507,120]
[407859674,1772837131737,-1395.017,0.000507,120]
[407859675,1772837131784,-1395.01,0.000507,120]
[407859676,1772837131832,-150.0,0.00050703,120]
[407859677,1772837131880,-259.39398879,0.00050705,30]
[407859678,1772837131931,-196.401106,0.00050705,30]
[407859679,1772837131983,-150.0,0.00050719,30]
[407859680,1772837132034,-150.0,0.00050727,30]
[407859681,1772837132085,-150.0,0.00050743,30]
[407859682,1772837132138,-259.39398879,0.00050756,30]
[407859683,1772837132189,-196.401106,0.00050756,30]
[407859684,1772837132240,-150.0,0.00050766,30]
[407859685,1772837132292,-150.0,0.0005078,30]
[407859686,1772837132348,-2433.46845532,0.00050787,86]
[407859687,1772837132402,-150.0,0.00050798,30]
[407859688,1772837132461,-150.0,0.00050805,30]
[407859689,1772837132517,-259.39398879,0.00050808,30]
[407859690,1772837132572,-196.401106,0.00050808,30]
[407859691,1772837132624,-150.0,0.00050824,30]
[407859692,1772837132673,-150.0,0.00050824,30]
[407859693,1772837132724,-150.0,0.00050841,30]
[407859694,1772837132774,-150.0,0.00050844,30]
[407859695,1772837132820,-5000.0,0.0005085,120]
[407859696,1772837132871,-150.0,0.00050852,30]
[407859697,1772837132921,-259.39398879,0.00050859,30]
[407859698,1772837132969,-196.401106,0.00050859,30]
[407859699,1772837133017,-278.30760829,0.0005087,120]
[407859700,1772837133064,-467.19,0.00050871,120]
[407859701,1772837133115,-150.0,0.00050871,30]
[407859702,1772837133167,-276.85781896,0.00050882,120]
[407859703,1772837133221,-150.0,0.00050884,30]
[407859704,1772837133274,-11121.12451211,0.000509,120]
[407859705,1772837133328,-44198.95816315,0.000509,120]
[407859706,1772837133383,-150.0,0.00050907,30]
[407859707,1772837133436,-259.39398879,0.00050911,30]
[407859708,1772837133490,-196.401106,0.00050911,30]
[407859709,1772837133543,-150.0,0.00050911,120]
[407859710,1772837133591,-17125.12554111,0.00050912,120]
[407859711,1772837133638,-21111.1115211,0.00050912,120]
[407859712,1772837133687,-150.0,0.00050923,30]
[407859713,1772837133735,-151.0,0.00050959,120]
[407859714,1772837133783,-151.0,0.00050959,120]
[407859715,1772837133831,-151.0,0.00050959,120]
[407859716,1772837133880,-151.0,0.00050959,120]
[407859717,1772837133929,-150.0,0.00050959,120]
[407859718,1772837133977,-259.39398879,0.00050962,30]
[407859719,1772837134026,-241.21175314,0.00050962,30]
[407859720,1772837134074,-196.401106,0.00050962,30]
[407859721,1772837134126,-275.41066457,0.00050962,30]
[407859722,1772837134177,-221.84063967,0.00050962,30]
[407859723,1772837134225,-278.22274647,0.00050962,30]
[407859724,1772837134277,-282.59655089,0.00050962,30]
[407859725,1772837134330,-187.93715712,0.00050962,30]
[407859726,1772837134384,-239.24759194,0.00050962,30]
[407859727,1772837134436,-291.29369427,0.00050962,30]
[407859728,1772837134491,-264.96496351,0.00050962,30]
[407859729,1772837134543,-225.87211035,0.00050962,30]
[407859730,1772837134595,-16621.12451112,0.00050988,120]
[407859731,1772837134641,-13124.14255711,0.00050989,120]
[407859732,1772837134688,-9451.1241111,0.0005099,120]
[407859733,1772837134732,-1000.0,0.00050999,120]
[407859734,1772837134778,-151.0,0.00050999,40]
[407859735,1772837134825,-156.587,0.00050999,41]
[407859736,1772837135016,-162.380719,0.00050999,42]
[407859737,1772837135075,-168.3888056,0.00050999,43]
[407859738,1772837135126,-174.61919141,0.00050999,44]
[407859739,1772837135175,-181.08010149,0.00050999,45]
[407859740,1772837135227,-187.78006525,0.00050999,46]
[407859741,1772837135277,-194.72792766,0.00050999,47]
[407859742,1772837135329,-201.93286099,0.00050999,48]
[407859743,1772837135385,-50000.0,0.00051,75]
[407859744,1772837135436,-15261.0,0.00051,120]
[407859745,1772837135487,-15261.0,0.00051,120]
[407859746,1772837135537,-15261.0,0.00051,120]
[407859747,1772837135587,-15261.0,0.00051,120]
[407859748,1772837135641,-683027.00527829,0.00051,90]
[407859749,1772837135695,-15261.0,0.00051,120]
[407859750,1772837135750,-6737.0,0.00051,120]
[407859751,1772837135803,-150.0,0.00051,40]
[407859752,1772837135865,-1000000.0,0.00051,100]
[407859753,1772837135926,-1000000.0,0.00051,100]
[407859754,1772837135982,-1000000.0,0.00051,120]
[407859755,1772837136037,-1109.0,0.00051,30]
[407859756,1772837136090,-14306.72406724,0.00051,120]
[407859757,1772837136140,-1610.68049045,0.00051,120]
[407859758,1772837136192,-152.0,0.00051,120]
[407859759,1772837136242,-154.0,0.00051,120]
[407859760,1772837136293,-469.23,0.00051,120]
[407859761,1772837136346,-298.0,0.00051,120]
[407859762,1772837136401,-151.0,0.00051,120]
[407859763,1772837136455,-12160.555093,0.00051,120]
[407859764,1772837136506,-12160.555093,0.00051,120]
[407859765,1772837136555,-151.0,0.00051,120]
[407859766,1772837136605,-12160.555093,0.00051,120]
[407859767,1772837136655,-12160.555097,0.00051,120]
[407859768,1772837136705,-293.117686,0.00051,120]
[407859769,1772837136757,-293.117686,0.00051,120]
[407859770,1772837136808,-293.117686,0.00051,120]
[407859771,1772837136859,-293.117686,0.00051,120]
[407859772,1772837136910,-293.117686,0.00051,120]
[407859773,1772837136962,-293.117686,0.00051,120]
[407859774,1772837137015,-293.117686,0.00051,120]
[407859775,1772837137071,-293.117686,0.00051,120]
[407859776,1772837137125,-151.0,0.00051,120]
[407859777,1772837137177,-151.0,0.00051,120]
[407859778,1772837137229,-151.0,0.00051,120]
[407859779,1772837137280,-235.42946,0.00051,120]
[407859780,1772837137335,-150.0,0.00051018,120]
[407859781,1772837137385,-1211.33,0.00051022,120]
[407859782,1772837137434,-962.82618512,0.00051023,60]
[407859783,1772837137484,-887.97580398,0.00051023,60]
[407859784,1772837137536,-162.11,0.00051058,120]
[407859785,1772837137588,-150.0,0.00051089,120]
[407859786,1772837137639,-150.0,0.00051126,120]
[407859787,1772837137691,-162.11,0.00051158,120]
[407859788,1772837137741,-150.0,0.00051175,120]
[407859789,1772837137791,-10010.97481444,0.00051234,120]
[407859790,1772837137847,-1000000.0,0.0005125,105]
[407859791,1772837137899,-1000000.0,0.0005125,105]
[407859792,1772837137948,-1000000.0,0.0005125,120]
[407859793,1772837137996,-151.0,0.0005125,120]
[407859794,1772837138045,-151.0,0.0005125,120]
[407859795,1772837138094,-151.0,0.0005125,120]
[407859796,1772837138148,-162.11,0.00051258,120]
[407859797,1772837138201,-164.81006295,0.00051258,30]
[407859798,1772837138256,-180.0,0.00051259,30]
[407859799,1772837138310,-180.0,0.00051259,30]
[407859800,1772837138363,-283.78480685,0.00051259,30]
[407859801,1772837138416,-247.21509443,0.00051273,30]
[407859802,1772837138470,-150.0,0.00051308,120]
[407859803,1772837138524,-150.0,0.0005131,120]
[407859804,1772837138576,-5499.16928397,0.00051324,120]
[407859805,1772837138629,-150.0,0.00051349,120]
[407859806,1772837138677,-150.0,0.00051351,120]
[407859807,1772837138728,-162.11,0.00051358,120]
[407859808,1772837138778,-467.19,0.00051375,120]
[407859809,1772837138828,-1211.33,0.0005138,120]
[407859810,1772837138879,-150.0,0.00051387,120]
[407859811,1772837138932,-150.0,0.00051395,120]
[407859812,1772837138985,-20725.27831558,0.000514,120]
[407859813,1772837139040,-150.0,0.00051425,120]
[407859814,1772837139095,-162.11,0.00051458,120]
[407859815,1772837139147,-506.0,0.00051466,48]
[407859816,1772837139198,-622.66,0.00051468,120]
[407859817,1772837139255,-865937.10276502,0.000515,120]
[407859819,1772837252121,-200.0,0.000126,4]
[407859820,1772837252141,-500.0,0.000127,4]
[407859821,1772837252160,-800.0,0.000128,4]
[407859822,1772837252179,-835.62385322,0.0001282,2]
[407859823,1772837337196,-10000.01,0.00012886,2]
[407859824,1772837337401,-10000.01,0.00012886,2]
[407859825,1772837337525,-10000.01,0.00012886,2]
[407859826,1772837337624,-10000.01,0.00012886,2]
[407859827,1772837343151,-10000.01,0.00012886,2]
[407859828,1772837343283,-2511.4798,0.00012886,2]
[407859829,1772837343315,-2477.0504,0.00012886,2]
[407859830,1772837343362,-22.9496,0.00012821,2]
[407859831,1772837343570,-151.60618,0.00012821,2]
[407859832,1772837343599,-22.9496,0.00012886,2]
[407859833,1772837343629,-411.5692,0.00012886,2]
[407859834,1772837343659,-167.907876,0.000129,2]
[407859835,1772837343688,-2964.84774548,0.000129,2]
[407859836,1772837343725,-2562.24879704,0.000129,2]
[407859837,1772837343753,-1100.0,0.000129,4]
[407859838,1772837343781,-500.0,0.00012973,2]
[407859839,1772837343810,-500.0,0.00012985,2]
[407859840,1772837343838,-184.92021449,0.00012985,2]
[407859841,1772837343972,-277.32858255,0.00012985,2]
[407859842,1772837343993,-222.67141745,0.00012985,2]
[407859843,1772837344003,-500.0,0.00012985,2]
[407859844,1772837344013,-377.32858255,0.00012985,2]
[407859845,1772837344028,-122.67141745,0.00012985,2]
[407859846,1772837344039,-377.32858255,0.00012985,2]
[407859847,1772837344055,-122.67141745,0.00012985,2]
[407859848,1772837344066,-377.32858255,0.00012985,2]
[407859849,1772837344081,-122.67141745,0.00012985,2]
[407859850,1772837344090,-62.24879704,0.00012985,2]
[407859851,1772837344104,-305.67197694,0.00012985,2]
[407859852,1772837355090,-500.0,0.00012973,2]
[407859853,1772837355129,-132.07922602,0.00012985,2]
[407859854,1772837355156,-500.0,0.00012985,2]
[407859855,1772837355181,-500.0,0.00012985,2]
[407859856,1772837355205,-500.0,0.00012985,2]
[407859857,1772837355230,-500.0,0.00012985,2]
[407859858,1772837355254,-500.0,0.00012985,2]
[407859859,1772837355278,-500.0,0.00012985,2]
[407859860,1772837355303,-500.0,0.00012985,2]
[407859861,1772837355328,-500.0,0.00012985,2]
[407859862,1772837355353,-500.0,0.00012985,2]
[407859863,1772837355378,-500.0,0.00012985,2]
[407859864,1772837355403,-500.0,0.00012985,2]
[407859865,1772837355427,-411.20301462,0.00012985,2]
[407859866,1772837355453,-500.0,0.00012985,2]
[407859867,1772837355478,-500.0,0.00012985,2]
[407859868,1772837355502,-500.0,0.00012985,2]
[407859869,1772837355526,-500.0,0.00012985,2]
[407859870,1772837355552,-500.0,0.00012985,2]
[407859871,1772837355578,-500.0,0.00012985,2]
[407859872,1772837355608,-500.0,0.00012985,2]
[407859873,1772837355633,-500.0,0.00012985,2]
[407859874,1772837355660,-500.0,0.00012985,2]
[407859875,1772837355687,-500.0,0.00012985,2]
[407859876,1772837355714,-500.0,0.00012985,2]
[407859877,1772837355740,-500.0,0.00012985,2]
[407859878,1772837355766,-99.67858734,0.00012985,2]
[407859882,1772837431491,-253.0,0.00012553,2]
[407859883,1772837431501,-2368.14,0.00012553,2]
[407859884,1772837431510,-941003.95837649,0.00012786,2]
[407859885,1772837431522,-182155.60598911,0.00012786,2]
[407859886,1772837431533,-254.14013485,0.00012786,2]
[407859887,1772837431563,-371.32136718,0.00012786,2]
[407859888,1772837431637,-787.27893922,0.00012786,2]
[407859914,1772837437591,-163801.64279915,0.00012786,2]
[407859950,1772837439891,-1211626.052394,0.00012786,2]
[407859951,1772837439901,-2500.0,0.00012886,2]
[407859952,1772837439911,-400.32141266,0.00012985,2]
[407859953,1772837439924,-500.0,0.00012985,2]
[407859954,1772837439933,-500.0,0.00012985,2]
[407859955,1772837439942,-500.0,0.00012985,2]
[407859956,1772837439952,-300.0,0.00012985,2]
[407859957,1772837439962,-500.0,0.00012985,2]
[407859958,1772837439971,-500.0,0.00012985,2]
[407859959,1772837439980,-152.67,0.00013,2]
[407859960,1772837439990,-152.67,0.00013,2]
[407859961,1772837440001,-152.67,0.00013,2]
[407859962,1772837440011,-152.68,0.00013,2]
[407859963,1772837440027,-230.4247132,0.0001303,2]
[407859964,1772837440037,-500.0,0.0001303,2]
[407859965,1772837440047,-150.99,0.0001303,2]
[407859966,1772837440058,-9999.99,0.0001303,2]
[407859967,1772837440067,-500.0,0.00013064,2]
[407859968,1772837440077,-1000.0,0.0001313,2]
[407859969,1772837440087,-509.0,0.0001342,2]
[407859970,1772837440096,-1001.72819961,0.00013521,2]
[407859971,1772837440105,-19788.84368355,0.00013599,2]
[407859972,1772837440115,-497.49770464,0.00013698,2]
[407859973,1772837440128,-500.0,0.00013698,2]
[407859974,1772837440138,-500.0,0.00013698,2]
[407859975,1772837440148,-500.0,0.00013698,2]
[407859976,1772837440157,-500.0,0.00013698,2]
[407859977,1772837440167,-500.0,0.00013698,2]
[407859978,1772837440176,-500.0,0.00013698,2]
[407859979,1772837440186,-500.0,0.00013698,2]
[407859980,1772837440197,-500.0,0.00013698,2]
[407859981,1772837440206,-500.0,0.00013698,2]
[407859982,1772837440216,-500.0,0.00013698,2]
[407859983,1772837440226,-500.0,0.00013698,2]
[407859984,1772837440235,-500.0,0.00013698,2]
[407859985,1772837440245,-630.81055911,0.00013698,2]
[407859986,1772837440254,-500.0,0.00013698,2]
[407859987,1772837440264,-500.0,0.00013698,2]
[407859988,1772837440274,-500.0,0.00013698,2]
[407859989,1772837440284,-500.0,0.00013698,2]
[407859990,1772837440293,-500.0,0.00013698,2]
[407859991,1772837440303,-500.0,0.00013698,2]
[407859992,1772837440313,-500.0,0.00013698,2]
[407859993,1772837440327,-500.0,0.00013698,2]
[407859994,1772837440338,-379.68782672,0.00013698,2]
[407859995,1772837440348,-500.0,0.00013698,2]
[407859996,1772837440358,-500.0,0.00013698,2]
[407859997,1772837440368,-500.0,0.00013698,2]
[407859998,1772837440378,-500.0,0.00013698,2]
[407859999,1772837440387,-515.82300736,0.00013698,2]
[407860000,1772837440397,-500.0,0.00013698,2]
[407860001,1772837440407,-500.0,0.00013698,2]
[407860002,1772837440417,-500.0,0.00013698,2]
[407860003,1772837440427,-500.0,0.00013698,2]
[407860004,1772837440437,-500.0,0.00013698,2]
[407860005,1772837440447,-500.0,0.00013698,2]
[407860006,1772837440458,-500.0,0.00013698,2]
[407860007,1772837440468,-500.0,0.00013698,2]
[407860008,1772837440478,-500.0,0.00013698,2]
[407860009,1772837440489,-500.0,0.00013698,2]
[407860010,1772837440499,-500.0,0.00013698,2]
[407860011,1772837440508,-500.0,0.00013698,2]
[407860012,1772837440518,-299.99,0.00013698,2]
[407860013,1772837440528,-500.0,0.00013698,2]
[407860014,1772837440537,-500.0,0.00013698,2]
[407860015,1772837440546,-500.0,0.00013698,2]
[407860016,1772837440556,-500.0,0.00013698,2]
[407860017,1772837440565,-500.0,0.00013698,2]
[407860018,1772837440575,-500.0,0.00013698,2]
[407860019,1772837440584,-500.0,0.00013698,2]
[407860020,1772837440593,-500.0,0.00013698,2]
[407860021,1772837440603,-500.0,0.00013698,2]
[407860022,1772837440612,-500.0,0.00013698,2]
[407860023,1772837440622,-184.94185274,0.00013699,2]
[407860024,1772837440631,-318.28338402,0.00013699,2]
[407860025,1772837440640,-500.0,0.00013699,2]
[407860026,1772837440649,-167.04486483,0.00013699,2]
[407860027,1772837440659,-18344.53,0.000137,2]
[407860028,1772837440667,-18344.53,0.000137,2]
[407860029,1772837440677,-600.0,0.00013808,2]
[407860030,1772837440685,-600.0,0.00013808,2]
[407860031,1772837440698,-600.0,0.00013808,2]
[407860032,1772837440707,-600.0,0.00013808,2]
[407860033,1772837440717,-600.0,0.00013808,2]
[407860034,1772837440726,-300.0,0.00013808,2]
[407860035,1772837440736,-300.0,0.00013808,2]
[407860036,1772837440746,-300.0,0.00013808,2]
[407860037,1772837440756,-1030.07997026,0.00014273,2]
[407860038,1772837440765,-932.0,0.00014353,2]
[407860039,1772837440774,-1650.0,0.00014381,2]
[407860040,1772837440783,-498.6,0.00014853,2]
[407860041,1772837440792,-350.0,0.00014876,2]
[407860042,1772837440802,-184.86,0.00014914,2]
[407860043,1772837440811,-3198.05,0.00014971,2]
[407860044,1772837440820,-10742.88,0.00014994,2]
[407860045,1772837440829,-250.0,0.00015,2]
[407860046,1772837440838,-202.78620174,0.00015142,2]
[407860047,1772837440847,-326.15,0.00015174,2]
[407860048,1772837440856,-284.3,0.00015189,2]
[407860049,1772837440865,-25825.94,0.00015192,2]
[407860050,1772837440875,-689.0,0.00015237,2]
[407860051,1772837440884,-166.66,0.00015597,2]
[407860052,1772837440894,-5741.12,0.00015703,2]
[407860053,1772837440905,-3198.05,0.0001572,2]
[407860054,1772837440915,-2000.0,0.0001589,2]
[407860055,1772837440925,-284.3,0.00016032,2]
[407860056,1772837440936,-166.66,0.00016112,2]
[407860057,1772837440946,-158.54,0.0001621,2]
[407860058,1772837440956,-497.0,0.00016333,2]
[407860059,1772837440966,-3198.05,0.00016469,2]
[407860060,1772837440977,-158.54,0.0001648,2]
[407860061,1772837440987,-166.66,0.00016627,2]
[407860062,1772837441000,-5527.09654243,0.00016696,2]
[407860063,1772837441010,-166.34,0.00016712,2]
[407860064,1772837441022,-158.54,0.0001675,2]
[407860065,1772837441031,-284.3,0.00016876,2]
[407860066,1772837441040,-300.0,0.00017,2]
[407860067,1772837441050,-158.54,0.0001702,2]
[407860068,1772837441061,-166.66,0.00017142,2]
[407860069,1772837441071,-250.0,0.00017158,2]
[407860070,1772837441081,-3198.05,0.00017217,2]
[407860071,1772837441091,-158.54,0.0001729,2]
[407860072,1772837441103,-158.54,0.0001756,2]
[407860073,1772837441112,-500.0,0.00017643,2]
[407860074,1772837441122,-166.66,0.00017656,2]
[407860075,1772837441132,-284.3,0.0001772,2]
[407860076,1772837441141,-158.54,0.0001783,2]
[407860077,1772837441151,-3198.05,0.00017966,2]
[407860078,1772837441162,-158.54,0.000181,2]
[407860079,1772837441172,-166.66,0.00018171,2]
[407860080,1772837441181,-158.54,0.0001837,2]
[407860081,1772837441191,-637.78991474,0.0001854,3]
[407860082,1772837441201,-264.21504645,0.0001854,2]
[407860083,1772837441210,-284.3,0.00018564,2]
[407860084,1772837441219,-167.90787599,0.00018594,2]
[407860085,1772837441228,-228.32,0.00018624,2]
[407860086,1772837441237,-209750.87,0.00018624,2]
[407860087,1772837441247,-158.54,0.0001864,2]
[407860088,1772837441256,-230.42471314,0.00018715,2]
[407860089,1772837441265,-3319.98,0.00018718,2]
[407860090,1772837441275,-16756.87,0.00018776,2]
[407860091,1772837441292,-1824.43,0.00018855,2]
[407860092,1772837441303,-158.54,0.0001891,2]
[407860093,1772837441313,-168.0,0.00018935,2]
[407860094,1772837441324,-509.0,0.00018968,6]
[407860095,1772837441334,-247.63360212,0.00019,2]
[407860096,1772837441343,-500.0,0.00019167,2]
[407860097,1772837441353,-4580.7241,0.00019168,2]
[407860098,1772837441363,-158.54,0.0001918,2]
[407860099,1772837441372,-168.0,0.00019282,2]
[407860100,1772837441382,-168.0,0.00019343,2]
[407860101,1772837441392,-284.3,0.00019408,2]
[407860102,1772837441402,-168.0,0.00019423,2]
[407860103,1772837441411,-158.54,0.0001945,2]
[407860104,1772837441421,-168.0,0.0001951,2]
[407860105,1772837441430,-158.54,0.0001972,2]
[407860106,1772837441439,-11914.31514552,0.000199,3]
[407860107,1772837441449,-158.54,0.0001999,2]
[407860108,1772837441459,-219.52,0.0002,7]
[407860109,1772837441468,-6480.18,0.0002,30]
[407860110,1772837441478,-168.0,0.00020044,2]
[407860111,1772837441488,-168.0,0.00020114,2]
[407860112,1772837441498,-284.3,0.00020251,2]
[407860113,1772837441510,-158.54,0.0002026,2]
[407860114,1772837441519,-168.0,0.00020285,2]
[407860115,1772837441528,-168.0,0.0002043,2]
[407860116,1772837441538,-5527.09654243,0.00020492,2]
[407860117,1772837441548,-158.54,0.0002053,2]
[407860118,1772837441558,-168.0,0.00020626,2]
[407860119,1772837441568,-158.54,0.000208,2]
[407860120,1772837441578,-158.54,0.0002107,2]
[407860121,1772837441588,-284.3,0.00021095,2]
[407860122,1772837441597,-158.54,0.0002134,2]
[407860123,1772837441606,-354.819736,0.00021366,7]
[407860124,1772837441615,-158.54,0.0002161,2]
[407860125,1772837441624,-158.54,0.0002188,2]
[407860126,1772837441634,-284.3,0.00021939,2]
[407860127,1772837441643,-166.89,0.00021954,2]
[407860128,1772837441652,-158.54,0.0002215,2]
[407860129,1772837441661,-158.73,0.0002242,2]
[407860130,1772837441671,-166.34,0.00022603,2]
[407860131,1772837441680,-284.3,0.00022783,2]
[407860132,1772837441689,-160.0,0.00023,2]
[407860133,1772837441699,-405.38,0.00023207,2]
[407860134,1772837441708,-1625.45032244,0.00023393,2]
[407860135,1772837441718,-270.90838707,0.00023603,2]
[407860136,1772837441727,-500.0,0.00023781,2]
[407860137,1772837441741,-270.90838707,0.00023837,2]
[407860138,1772837441751,-270.90838707,0.00024071,2]
[407860139,1772837441760,-167.90787599,0.00024289,2]
[407860140,1772837441769,-5527.09654243,0.00024289,2]
[407860141,1772837441778,-2368.14,0.00024334,2]
[407860142,1772837441788,-230.42471314,0.00024399,2]
[407860143,1772837441797,-509.0,0.00024517,11]
[407860144,1772837441806,-150.0,0.00024658,2]
[407860145,1772837441816,-3559.0549049,0.000249,3]
[407860146,1772837441825,-274.86981007,0.00024973,2]
[407860147,1772837441834,-150.0,0.0002589,2]
[407860148,1772837441844,-150.0,0.00027185,2]
[407860149,1772837441854,-658.58,0.000273,14]
[407860150,1772837441864,-150.0,0.00027369,2]
[407860151,1772837441873,-8047.06,0.00027397,10]
[407860152,1772837441884,-7668.18,0.00027397,10]
[407860153,1772837441895,-6390.15,0.00027397,10]
[407860154,1772837441904,-5325.12,0.00027397,10]
[407860155,1772837441914,-163.28,0.000274,7]
[407860156,1772837441925,-166.89,0.00027442,2]
[407860157,1772837441935,-3240.0,0.0002758,2]
[407860158,1772837441944,-478.42544591,0.00027766,7]
[407860159,1772837441955,-259.47,0.00027829,2]
[407860160,1772837441965,-5527.09654243,0.00028085,2]
[407860161,1772837441974,-166.34,0.00028493,2]
[407860162,1772837441983,-150.0,0.00028544,2]
[407860163,1772837441993,-9000.0,0.00029243,2]
[407860164,1772837442002,-900.0,0.00029592,2]
[407860165,1772837442223,-150.0,0.00029886,2]
[407860166,1772837442233,-150.0,0.00029971,2]
[407860167,1772837442243,-167.90787599,0.00029983,2]
[407860168,1772837442252,-500.0,0.00030027,2]
[407860169,1772837442261,-509.0,0.00030065,16]
[407860170,1772837442271,-230.42471314,0.00030084,2]
[407860171,1772837442280,-163.28,0.000305,7]
[407860172,1772837442289,-900.0,0.00030962,2]
[407860173,1772837442298,-150.0,0.0003147,2]
[407860174,1772837442307,-5527.09654243,0.00031881,2]
[407860175,1772837442316,-3502.0,0.00031954,2]